fUST/lending_fUST_20250112
["ID","MTS","AMOUNT","RATE_DAILY","PERIOD"]
[348615599,1736675441668,-1636.56,0.00019452,3]
[348615602,1736675441677,-5028.05,0.00019452,3]
[348615603,1736675441687,-500.0,0.00019452,3]
[348615605,1736675441696,-570.94,0.00019452,3]
[348615608,1736675441705,-500.0,0.00019452,3]
[348615610,1736675441714,-500.0,0.00019452,3]
[348615612,1736675441723,-500.0,0.00019452,3]
[348615614,1736675441732,-1020.16,0.00019452,3]
[348615616,1736675441741,-500.0,0.00019452,3]
[348615618,1736675441751,-1320.73,0.00019452,3]
[348615620,1736675441760,-500.0,0.00019452,3]
[348615622,1736675441769,-257.12970042,0.00019452,3]
[348615623,1736675441778,-500.0,0.00019452,3]
[348615625,1736675441787,-558.68,0.00019452,3]
[348615627,1736675441796,-500.0,0.00019452,3]
[348615630,1736675441805,-500.0,0.00019452,3]
[348615632,1736675441814,-9508.77,0.00019452,3]
[348615634,1736675441823,-500.0,0.00019452,3]
[348615636,1736675441832,-500.0,0.00019452,3]
[348615638,1736675441842,-500.0,0.00019452,3]
[348615640,1736675441850,-899.24,0.00019452,3]
[348615642,1736675441860,-500.0,0.00019452,3]
[348615644,1736675441872,-514.92166255,0.00019452,3]
[348615646,1736675441881,-555.59,0.00019452,3]
[348615647,1736675441890,-500.0,0.00019452,3]
[348615650,1736675441899,-503.86181261,0.00019452,3]
[348615652,1736675441909,-500.0,0.00019452,3]
[348615654,1736675441919,-500.0,0.00019452,3]
[348615656,1736675441928,-2635.66,0.00019452,3]
[348615657,1736675441937,-2992.45,0.00019452,3]
[348615660,1736675441947,-500.0,0.00019452,3]
[348615662,1736675441956,-500.0,0.00019452,3]
[348615664,1736675441966,-1682.18,0.00019452,3]
[348615666,1736675441975,-500.0,0.00019452,3]
[348615668,1736675441984,-500.0,0.00019452,3]
[348615669,1736675441994,-1358.82,0.00019452,3]
[348615671,1736675442003,-500.0,0.00019452,3]
[348615673,1736675442012,-1420.06,0.00019452,3]
[348615675,1736675442021,-1374.46,0.00019452,3]
[348615677,1736675442030,-500.0,0.00019452,3]
[348615679,1736675442039,-500.0,0.00019452,3]
[348615681,1736675442050,-500.0,0.00019452,3]
[348615683,1736675442059,-500.0,0.00019452,3]
[348615685,1736675442068,-500.0,0.00019452,3]
[348615687,1736675442077,-500.0,0.00019452,3]
[348615689,1736675442087,-500.0,0.00019452,3]
[348615691,1736675442096,-500.0,0.00019452,3]
[348615693,1736675442106,-515.98575392,0.00019452,3]
[348615695,1736675442115,-1187.26,0.00019452,3]
[348615697,1736675442124,-1038.95,0.00019452,3]
[348615699,1736675442133,-500.0,0.00019473,2]
[348615701,1736675442142,-500.0,0.00019473,2]
[348615703,1736675442152,-170.268,0.00019501,2]
[348615705,1736675442161,-11515.18975504,0.00019619,2]
[348615707,1736675442171,-150.0,0.00019625,2]
[348615709,1736675442181,-2073.0,0.00019625,2]
[348615711,1736675442190,-535.0,0.00019625,2]
[348615713,1736675442200,-2316.0,0.00019625,2]
[348615715,1736675442209,-14556.2108272,0.000197,2]
[348615716,1736675442219,-14556.21082719,0.000197,2]
[348615718,1736675442228,-14556.21082719,0.000197,2]
[348615720,1736675442237,-500.95811707,0.000197,5]
[348615723,1736675442246,-7259.9,0.00019726,3]
[348615725,1736675442256,-500.0,0.00019726,3]
[348615727,1736675442265,-500.0,0.00019726,3]
[348615729,1736675442274,-500.0,0.00019726,3]
[348615731,1736675442283,-500.0,0.00019726,3]
[348615732,1736675442293,-500.0,0.00019726,3]
[348615734,1736675442302,-258.43696332,0.00019726,3]
[348615737,1736675442311,-500.0,0.00019726,3]
[348615739,1736675442321,-1030.75,0.00019726,3]
[348615741,1736675442331,-500.0,0.00019726,3]
[348615742,1736675442340,-500.0,0.00019726,3]
[348615744,1736675442349,-515.26188312,0.00019726,3]
[348615746,1736675442359,-511.9068935,0.00019726,3]
[348615748,1736675442369,-500.0,0.00019726,3]
[348615750,1736675442378,-555.01,0.00019726,3]
[348615752,1736675442387,-500.0,0.00019726,3]
[348615754,1736675442396,-500.0,0.00019726,3]
[348615756,1736675442405,-495.81657827,0.00019726,3]
[348615758,1736675442414,-1289.81,0.00019726,3]
[348615760,1736675442425,-500.0,0.00019726,3]
[348615762,1736675442434,-683.84,0.00019726,3]
[348615764,1736675442444,-1147.41,0.00019726,3]
[348615766,1736675442453,-500.0,0.00019726,3]
[348615768,1736675442462,-500.0,0.00019726,3]
[348615770,1736675442471,-500.0,0.00019726,3]
[348615772,1736675442480,-500.0,0.00019726,3]
[348615774,1736675442489,-500.0,0.00019726,3]
[348615776,1736675442500,-586.57,0.00019726,3]
[348615778,1736675442509,-555.24,0.00019726,3]
[348615780,1736675442519,-335.09160448,0.00019726,3]
[348615782,1736675442528,-500.0,0.00019726,3]
[348615784,1736675442538,-500.0,0.00019726,3]
[348615786,1736675442547,-500.0,0.00019726,3]
[348615788,1736675442556,-500.0,0.00019726,3]
[348615790,1736675442565,-624.42,0.00019726,3]
[348615792,1736675442574,-500.0,0.00019726,3]
[348615795,1736675442584,-500.0,0.00019726,3]
[348615797,1736675442594,-372.58573468,0.00019726,3]
[348615799,1736675442603,-636.24,0.00019726,3]
[348615800,1736675442614,-500.0,0.00019726,3]
[348615802,1736675442623,-500.0,0.00019726,3]
[348615804,1736675442632,-1132.24,0.00019726,3]
[348615806,1736675442641,-500.0,0.00019726,3]
[348615809,1736675442650,-500.0,0.00019726,3]
[348615811,1736675442660,-500.0,0.00019726,3]
[348615813,1736675442669,-500.0,0.00019726,3]
[348615815,1736675442678,-996.9,0.00019726,3]
[348615817,1736675442687,-500.0,0.00019726,3]
[348615819,1736675442698,-534.88,0.00019726,3]
[348615821,1736675442707,-500.0,0.00019726,3]
[348615823,1736675442717,-500.0,0.00019726,3]
[348615825,1736675442726,-500.0,0.00019726,3]
[348615827,1736675442735,-500.0,0.00019726,3]
[348615829,1736675442744,-500.0,0.00019726,3]
[348615831,1736675442753,-500.0,0.00019726,3]
[348615833,1736675442762,-1369.72,0.00019726,3]
[348615834,1736675442771,-500.0,0.00019726,3]
[348615836,1736675442780,-500.0,0.00019726,3]
[348615839,1736675442791,-500.0,0.00019726,3]
[348615841,1736675442801,-500.0,0.00019726,3]
[348615842,1736675442810,-500.0,0.00019726,3]
[348615844,1736675442819,-500.0,0.00019726,3]
[348615846,1736675442829,-500.0,0.00019726,3]
[348615848,1736675442838,-500.0,0.00019726,3]
[348615850,1736675442847,-500.0,0.00019726,3]
[348615852,1736675442856,-500.0,0.00019726,3]
[348615854,1736675442868,-500.0,0.00019726,3]
[348615856,1736675442877,-500.0,0.00019726,3]
[348615858,1736675442887,-500.0,0.00019726,3]
[348615860,1736675442895,-500.0,0.00019726,3]
[348615862,1736675442905,-500.0,0.00019726,3]
[348615864,1736675442914,-535.63,0.00019726,3]
[348615866,1736675442923,-500.0,0.00019726,3]
[348615868,1736675442932,-500.0,0.00019726,3]
[348615870,1736675442941,-500.0,0.00019726,3]
[348615872,1736675442950,-1054.74,0.00019726,3]
[348615874,1736675442959,-500.0,0.00019726,3]
[348615876,1736675442968,-1086.28,0.00019726,3]
[348615878,1736675442978,-960.45,0.00019726,3]
[348615880,1736675442987,-506.73754953,0.00019726,3]
[348615883,1736675443006,-2553.90245047,0.00019726,3]
[348615885,1736675443016,-500.0,0.00019726,3]
[348615887,1736675443025,-500.0,0.00019726,3]
[348615889,1736675443035,-3254.9,0.00019726,3]
[348615891,1736675443044,-1763.33,0.00019726,3]
[348615894,1736675443055,-500.0,0.00019726,3]
[348615896,1736675443064,-500.0,0.00019726,3]
[348615898,1736675443073,-500.0,0.00019726,3]
[348615900,1736675443083,-1394.51,0.00019726,3]
[348615901,1736675443093,-500.0,0.00019726,3]
[348615904,1736675443102,-281.6307012,0.00019726,3]
[348615906,1736675443113,-218.3692988,0.00019726,3]
[348615917,1736675443210,-500.0,0.00019726,3]
[348615919,1736675443219,-1232.28,0.00019726,3]
[348615921,1736675443229,-7330.36020351,0.00019726,3]
[348615923,1736675443240,-9360.01377575,0.00019726,3]
[348615939,1736675443367,-500.0,0.00019178,2]
[348615941,1736675443376,-500.0,0.00019452,3]
[348615943,1736675443386,-17806.1858548,0.00019726,3]
[348615945,1736675443397,-2540.08016594,0.00019726,3]
[348615947,1736675443406,-521.57,0.00019726,3]
[348615949,1736675443415,-1679.14,0.00019726,3]
[348615951,1736675443423,-942.22,0.00019726,3]
[348615953,1736675443432,-1467.67,0.00019726,3]
[348615955,1736675443441,-545.74,0.00019726,3]
[348615957,1736675443450,-980.39,0.00019726,3]
[348615959,1736675443459,-5224.59771764,0.00019726,2]
[348615964,1736675443492,-598.0205773,0.00019726,2]
[348615966,1736675443505,-509.25149262,0.00019726,2]
[348615968,1736675443517,-500.59144884,0.00019726,2]
[348616015,1736675443950,-327.63839316,0.00019178,2]
[348616019,1736675444014,-172.36160684,0.00019178,2]
[348616020,1736675444023,-500.0,0.00019452,3]
[348616021,1736675444033,-1110.2887636,0.00019726,2]
[348616022,1736675444042,-500.0,0.00019726,3]
[348616023,1736675444051,-215.81732482,0.00019726,3]
[348616024,1736675444061,-260.1946822,0.00019726,3]
[348616025,1736675444069,-532.2452484,0.00019726,3]
[348616026,1736675444079,-500.0,0.00019726,3]
[348616027,1736675444089,-1636.56,0.00019726,3]
[348616028,1736675444098,-5028.05,0.00019726,3]
[348616029,1736675444107,-574.07274409,0.00019726,3]
[348616030,1736675444116,-570.94,0.00019726,3]
[348616031,1736675444124,-500.0,0.00019726,3]
[348616032,1736675444134,-500.0,0.00019726,3]
[348616034,1736675444143,-500.0,0.00019726,3]
[348616036,1736675444152,-1020.16,0.00019726,3]
[348616038,1736675444161,-500.0,0.00019726,3]
[348616040,1736675444171,-1320.73,0.00019726,3]
[348616042,1736675444180,-500.0,0.00019726,3]
[348616044,1736675444189,-500.0,0.00019726,3]
[348616046,1736675444198,-558.68,0.00019726,3]
[348616048,1736675444207,-179.22172672,0.00019726,3]
[348616050,1736675444216,-305.85632474,0.00019726,3]
[348616052,1736675444225,-9508.77,0.00019726,3]
[348616054,1736675444234,-500.0,0.00019726,3]
[348616056,1736675444243,-500.0,0.00019726,3]
[348616057,1736675444253,-500.0,0.00019726,3]
[348616058,1736675444262,-899.24,0.00019726,3]
[348616059,1736675444271,-500.0,0.00019726,3]
[348616060,1736675444280,-555.59,0.00019726,3]
[348616061,1736675444289,-500.0,0.00019726,3]
[348616062,1736675444298,-500.0,0.00019726,3]
[348616063,1736675444307,-500.0,0.00019726,3]
[348616064,1736675444316,-2635.66,0.00019726,3]
[348616065,1736675444325,-2992.45,0.00019726,3]
[348616066,1736675444334,-285.762478,0.00019726,3]
[348616067,1736675444443,-214.237522,0.00019726,3]
[348616068,1736675444452,-500.0,0.00019726,3]
[348616069,1736675444462,-1682.18,0.00019726,3]
[348616070,1736675444471,-500.0,0.00019726,3]
[348616071,1736675444480,-500.0,0.00019726,3]
[348616072,1736675444489,-1358.82,0.00019726,3]
[348616073,1736675444498,-500.0,0.00019726,3]
[348616074,1736675444507,-1420.06,0.00019726,3]
[348616075,1736675444517,-1374.46,0.00019726,3]
[348616076,1736675444526,-500.0,0.00019726,3]
[348616077,1736675444535,-500.0,0.00019726,3]
[348616078,1736675444544,-500.0,0.00019726,3]
[348616079,1736675444553,-500.0,0.00019726,3]
[348616080,1736675444562,-532.81738888,0.00019726,3]
[348616081,1736675444571,-500.0,0.00019726,3]
[348616082,1736675444580,-500.0,0.00019726,3]
[348616083,1736675444591,-1187.26,0.00019726,3]
[348616085,1736675444600,-1038.95,0.00019726,3]
[348616086,1736675444610,-500.0,0.00019726,3]
[348616088,1736675444619,-150.0,0.00019749,2]
[348616090,1736675444628,-500.0,0.00019773,2]
[348616091,1736675444637,-500.0,0.00019773,2]
[348616092,1736675444647,-500.0,0.00019773,2]
[348616093,1736675444657,-500.0,0.00019773,2]
[348616094,1736675444667,-500.58974087,0.00019773,2]
[348616096,1736675444677,-205.47977182,0.00019773,2]
[348616097,1736675444687,-152.44428301,0.00019773,2]
[348616099,1736675444696,-397.6517504,0.00019799,2]
[348616101,1736675444705,-11515.18975505,0.00019817,2]
[348616103,1736675444714,-249.51,0.00019881,2]
[348616104,1736675444724,-151.0,0.000199,2]
[348616105,1736675444733,-14556.21082719,0.000199,2]
[348616106,1736675444742,-314.94564091,0.00019973,2]
[348616107,1736675444751,-500.0,0.00019973,2]
[348616108,1736675444761,-230.52860313,0.0002,5]
[348616109,1736675444770,-374805.76284933,0.0002,2]
[348616110,1736675444780,-500.0,0.0002,2]
[348616111,1736675444790,-500.0,0.0002,2]
[348616112,1736675444799,-500.0,0.0002,2]
[348616113,1736675444808,-500.0,0.0002,2]
[348616114,1736675444817,-500.0,0.0002,2]
[348616115,1736675444828,-500.0,0.0002,2]
[348616116,1736675444838,-500.0,0.0002,2]
[348616117,1736675444847,-500.0,0.0002,2]
[348616118,1736675444857,-500.0,0.0002,2]
[348616119,1736675444871,-500.0,0.0002,2]
[348616120,1736675444880,-500.0,0.0002,2]
[348616121,1736675444889,-500.0,0.0002,2]
[348616122,1736675444899,-500.0,0.0002,2]
[348616123,1736675444909,-500.0,0.0002,2]
[348616124,1736675444918,-500.0,0.0002,2]
[348616125,1736675444927,-500.0,0.0002,2]
[348616126,1736675444937,-500.0,0.0002,2]
[348616127,1736675444947,-500.0,0.0002,2]
[348616128,1736675444957,-500.0,0.0002,2]
[348616129,1736675444967,-500.0,0.0002,2]
[348616130,1736675444975,-500.0,0.0002,2]
[348616131,1736675444984,-500.0,0.0002,2]
[348616132,1736675444994,-500.0,0.0002,2]
[348616133,1736675445003,-500.0,0.0002,2]
[348616134,1736675445012,-500.0,0.0002,2]
[348616135,1736675445021,-500.0,0.0002,2]
[348616136,1736675445031,-500.0,0.0002,2]
[348616137,1736675445039,-500.0,0.0002,2]
[348616138,1736675445049,-500.0,0.0002,2]
[348616139,1736675445058,-500.0,0.0002,2]
[348616140,1736675445067,-500.0,0.0002,2]
[348616141,1736675445076,-500.0,0.0002,2]
[348616142,1736675445086,-10979.74917616,0.0002,2]
[348616155,1736675445845,-500.0,0.00019178,2]
[348616157,1736675445855,-955.13,0.00019178,2]
[348616159,1736675445869,-500.0,0.00019452,3]
[348616161,1736675445878,-955.13,0.00019452,3]
[348616163,1736675445888,-500.0,0.00019726,3]
[348616165,1736675445897,-500.0,0.00019726,3]
[348616167,1736675445997,-21315.96562365,0.0002,2]
[348616168,1736675446009,-4932.04733104,0.0002,2]
[348616169,1736675446019,-15061.81549673,0.0002,5]
[348616170,1736675446031,-7413.56963883,0.0002,5]
[348616171,1736675446042,-2194.80523186,0.0002,5]
[348616172,1736675446057,-20319.85410021,0.0002,5]
[348616173,1736675446068,-1352.5613876,0.0002,5]
[348616201,1736676302664,163.032703,0.00013973,2]
[348616208,1736676552134,-1989.01104894,0.00016999,2]
[348616209,1736676553698,164.469575,0.0002411,120]
[348616289,1736676638137,-1092.28,0.00016829,2]
[348616512,1736676640498,-359.50100004,0.00016829,2]
[348616782,1736676643154,-3548.21899996,0.00016829,2]
[348616785,1736676643164,-3010.98895106,0.00016999,2]
[348616787,1736676643174,-473.31700908,0.00018886,2]
[348616789,1736676643183,-300.0,0.00018899,2]
[348616791,1736676643192,-2147.50720715,0.000189,2]
[348616793,1736676643202,-509.266,0.00019,2]
[348616795,1736676643211,-500.0,0.00019173,2]
[348616797,1736676643220,-500.0,0.00019173,2]
[348616799,1736676643230,-234.28229858,0.00019177,2]
[348616801,1736676643239,-215.14218097,0.00019177,2]
[348616803,1736676643248,-500.0,0.00019177,2]
[348616805,1736676643257,-456.73178958,0.00019177,2]
[348616807,1736676643266,-501.57541043,0.00019178,2]
[348616809,1736676643275,-500.0,0.00019178,2]
[348616811,1736676643285,-500.0,0.00019178,2]
[348616813,1736676643294,-500.0,0.00019178,2]
[348616815,1736676643303,-486.7309234,0.00019178,2]
[348616817,1736676643314,-560.93701124,0.00019178,2]
[348616819,1736676643323,-500.78258104,0.00019178,2]
[348616821,1736676643333,-625.36256088,0.00019178,2]
[348616823,1736676643343,-500.0,0.00019178,2]
[348616825,1736676643353,-500.0,0.00019178,2]
[348616827,1736676643365,-500.0,0.00019178,2]
[348616829,1736676643374,-498.90051502,0.00019178,2]
[348616831,1736676643387,-435.3913673,0.00019178,2]
[348616833,1736676643396,-500.0,0.00019178,2]
[348616835,1736676643405,-3052.65,0.00019178,2]
[348616837,1736676643414,-501.90122122,0.00019178,2]
[348616839,1736676643424,-500.0,0.00019178,2]
[348616842,1736676643433,-500.0,0.00019178,2]
[348616844,1736676643442,-500.0,0.00019178,2]
[348616846,1736676643451,-500.0,0.00019178,2]
[348616848,1736676643461,-500.0,0.00019178,2]
[348616850,1736676643470,-457.50287069,0.00019178,2]
[348616852,1736676643480,-520.41,0.00019178,2]
[348616854,1736676643489,-500.0,0.00019178,2]
[348616856,1736676643498,-517.34146732,0.00019178,2]
[348616858,1736676643507,-526.66492609,0.00019178,2]
[348616860,1736676643517,-500.0,0.00019178,2]
[348616862,1736676643527,-500.0,0.00019178,2]
[348616864,1736676643536,-500.0,0.00019178,2]
[348616866,1736676643545,-503.70124032,0.00019178,2]
[348616868,1736676643555,-500.0,0.00019178,2]
[348616870,1736676643564,-500.0,0.00019178,2]
[348616872,1736676643573,-500.0,0.00019178,2]
[348616874,1736676643584,-500.0,0.00019178,2]
[348616876,1736676643593,-188.86473845,0.00019178,2]
[348616878,1736676643603,-500.0,0.00019178,2]
[348616880,1736676643612,-1059.69,0.00019178,2]
[348616882,1736676643621,-503.37074174,0.00019178,2]
[348616884,1736676643630,-500.0,0.00019178,2]
[348616886,1736676643640,-479.5913916,0.00019178,2]
[348616888,1736676643650,-500.0,0.00019178,2]
[348616890,1736676643659,-500.0,0.00019178,2]
[348616892,1736676643669,-500.0,0.00019178,2]
[348616894,1736676643678,-500.0,0.00019178,2]
[348616896,1736676643687,-500.0,0.00019178,2]
[348616898,1736676643697,-622.26810396,0.00019178,2]
[348616900,1736676643707,-500.0,0.00019178,2]
[348616902,1736676643717,-500.0,0.00019178,2]
[348616904,1736676643726,-500.0,0.00019178,2]
[348616906,1736676643736,-500.0,0.00019178,2]
[348616908,1736676643746,-500.0,0.00019178,2]
[348616910,1736676643755,-500.0,0.00019178,2]
[348616912,1736676643765,-500.0,0.00019178,2]
[348616914,1736676643774,-500.0,0.00019178,2]
[348616916,1736676643784,-1174.14,0.00019178,2]
[348616918,1736676643793,-402.22937129,0.00019178,2]
[348616920,1736676643803,-500.0,0.00019178,2]
[348616922,1736676643812,-500.0,0.00019178,2]
[348616924,1736676643823,-500.0,0.00019178,2]
[348616926,1736676643832,-500.0,0.00019178,2]
[348616928,1736676643841,-628.0922724,0.00019178,2]
[348616930,1736676643850,-500.0,0.00019178,2]
[348616932,1736676643860,-588.03,0.00019178,2]
[348616934,1736676643870,-380.97869241,0.00019178,2]
[348616936,1736676643879,-1003.98,0.00019178,2]
[348616939,1736676643889,-500.0,0.00019178,2]
[348616941,1736676643898,-500.0,0.00019178,2]
[348616943,1736676643907,-500.0,0.00019178,2]
[348616945,1736676643918,-500.0,0.00019178,2]
[348616947,1736676643927,-500.0,0.00019178,2]
[348616949,1736676643936,-500.0,0.00019178,2]
[348616951,1736676643946,-500.0,0.00019178,2]
[348616953,1736676643956,-500.0,0.00019178,2]
[348616955,1736676643965,-534.08,0.00019178,2]
[348616957,1736676643974,-1032.37,0.00019178,2]
[348616959,1736676643984,-500.0,0.00019178,2]
[348616961,1736676643994,-506.66,0.00019178,2]
[348616963,1736676644003,-500.0,0.00019178,2]
[348616965,1736676644013,-500.0,0.00019178,2]
[348616967,1736676644023,-500.0,0.00019178,2]
[348616969,1736676644032,-913.95,0.00019178,2]
[348616971,1736676644042,-500.0,0.00019178,2]
[348616973,1736676644051,-500.0,0.00019178,2]
[348616975,1736676644060,-556.71,0.00019178,2]
[348616977,1736676644070,-500.0,0.00019178,2]
[348616979,1736676644079,-500.0,0.00019178,2]
[348616981,1736676644088,-500.0,0.00019178,2]
[348616983,1736676644097,-500.0,0.00019178,2]
[348616985,1736676644107,-500.0,0.00019178,2]
[348616987,1736676644116,-500.0,0.00019178,2]
[348616989,1736676644125,-500.0,0.00019178,2]
[348616991,1736676644135,-500.0,0.00019178,2]
[348616993,1736676644144,-500.0,0.00019178,2]
[348616995,1736676644154,-615.57795334,0.00019178,2]
[348616997,1736676644163,-500.0,0.00019178,2]
[348616999,1736676644172,-500.0,0.00019178,2]
[348617001,1736676644182,-524.92202235,0.00019178,2]
[348617003,1736676644191,-500.0,0.00019178,2]
[348617005,1736676644200,-501.69139054,0.00019178,2]
[348617007,1736676644210,-500.0,0.00019178,2]
[348617009,1736676644219,-500.0,0.00019178,2]
[348617011,1736676644229,-500.0,0.00019178,2]
[348617013,1736676644239,-1198.51,0.00019178,2]
[348617015,1736676644248,-500.0,0.00019178,2]
[348617017,1736676644257,-500.0,0.00019178,2]
[348617019,1736676644266,-500.0,0.00019178,2]
[348617021,1736676644276,-500.0,0.00019178,2]
[348617023,1736676644286,-500.0,0.00019178,2]
[348617025,1736676644295,-606.29031368,0.00019178,2]
[348617027,1736676644305,-500.0,0.00019178,2]
[348617029,1736676644314,-500.0,0.00019178,2]
[348617031,1736676644324,-505.53710305,0.00019178,2]
[348617033,1736676644333,-526.64426417,0.00019178,2]
[348617035,1736676644342,-216.19134971,0.00019178,2]
[348617037,1736676644352,-500.0,0.00019178,2]
[348617039,1736676644368,-640.03,0.00019178,2]
[348617041,1736676644378,-500.0,0.00019178,2]
[348617043,1736676644387,-500.0,0.00019178,2]
[348617045,1736676644397,-500.0,0.00019178,2]
[348617047,1736676644408,-152.34657847,0.00019178,2]
[348617049,1736676644417,-971.33,0.00019178,2]
[348617051,1736676644427,-500.0,0.00019178,2]
[348617053,1736676644437,-500.0,0.00019178,2]
[348617067,1736676644558,-397.33493975,0.00019178,2]
[348617071,1736676644577,-50.03567432,0.00019178,2]
[348617073,1736676644586,-471.42078291,0.00019178,2]
[348617075,1736676644599,-28.57921709,0.00019178,2]
[348617077,1736676644608,-500.0,0.00019178,2]
[348617079,1736676644618,-500.0,0.00019178,2]
[348617081,1736676644628,-230.35472164,0.00019178,2]
[348617083,1736676644637,-510.34,0.00019178,2]
[348617085,1736676644646,-500.0,0.00019178,2]
[348617087,1736676644656,-500.0,0.00019178,2]
[348617089,1736676644665,-500.0,0.00019178,2]
[348617091,1736676644674,-964.57,0.00019178,2]
[348617093,1736676644684,-500.0,0.00019178,2]
[348617096,1736676644703,-470.0065101,0.00019178,2]
[348617098,1736676644717,-29.9934899,0.00019178,2]
[348617100,1736676644727,-500.0,0.00019178,2]
[348617103,1736676644738,-500.0,0.00019178,2]
[348617105,1736676644748,-500.0,0.00019178,2]
[348617107,1736676644757,-500.0,0.00019178,2]
[348617109,1736676644767,-500.0,0.00019178,2]
[348617111,1736676644777,-32688.05,0.00019178,2]
[348617113,1736676644787,-523.0836814,0.00019178,2]
[348617115,1736676644797,-504.34,0.00019178,2]
[348617117,1736676644807,-500.0,0.00019178,2]
[348617119,1736676644816,-1220.2,0.00019178,2]
[348617121,1736676644826,-824.44,0.00019178,2]
[348617124,1736676644836,-500.0,0.00019178,2]
[348617126,1736676644845,-208.21065422,0.00019178,2]
[348617128,1736676644854,-1600.02,0.00019178,2]
[348617130,1736676644864,-500.0,0.00019178,2]
[348617132,1736676644874,-899.51,0.00019178,2]
[348617134,1736676644884,-500.0,0.00019178,2]
[348617136,1736676644894,-6352.42,0.00019178,2]
[348617138,1736676644904,-500.0,0.00019178,2]
[348617140,1736676644916,-500.0,0.00019178,2]
[348617142,1736676644926,-58.65404117,0.00019178,2]
[348617145,1736676644947,-1421.46595883,0.00019178,2]
[348617147,1736676644958,-427.4508716,0.00019178,2]
[348617254,1736676646134,-72.5491284,0.00019178,2]
[348617257,1736676646143,-1284.22,0.00019178,2]
[348617259,1736676646153,-2358.88392494,0.00019178,2]
[348617495,1736677343265,163.883552,0.00013973,2]
[348617506,1736677745140,-220.9165264,0.00016486,2]
[348617507,1736677745162,-5000.0,0.00016749,2]
[348617508,1736677745181,-4781.92843641,0.00016917,2]
[348617509,1736677749103,-555.07156359,0.00016917,2]
[348617510,1736677749124,-4886.45877395,0.00016918,2]
[348617511,1736677766087,-242.97653275,0.00016582,2]
[348617525,1736677772123,-4757.02346725,0.00016582,2]
[348617526,1736677772145,-5000.0,0.00016749,2]
[348617527,1736677772166,-2984.5202395,0.00017799,2]
[348617528,1736677772187,-277.357425,0.0001793,2]
[348617529,1736677772208,-4058.74505941,0.00018,7]
[348617834,1736677840438,-1456.39129636,0.00018,7]
[348617836,1736677840448,-1708.6898378,0.00018436,2]
[348617845,1736677840518,-3291.3101622,0.00018436,2]
[348617848,1736677840527,-300.0,0.00018621,2]
[348617851,1736677840537,-4764.11757033,0.00018622,2]
[348617854,1736677840546,-199.71309942,0.0001881,2]
[348617856,1736677840555,-1556.15385484,0.000189,2]
[348617858,1736677840564,-488.063,0.00019,2]
[348617860,1736677840573,-2429.97818358,0.00019,2]
[348617862,1736677840582,-302.63687509,0.00019,2]
[348617864,1736677840591,-500.0,0.00019173,2]
[348617866,1736677840601,-500.0,0.00019173,2]
[348617868,1736677840611,-155.31,0.00019177,2]
[348617870,1736677840620,-500.0,0.00019177,2]
[348617872,1736677840629,-502.63567797,0.00019177,2]
[348617874,1736677840638,-500.0,0.00019177,2]